fUSD/lending_fUSD_20251228
["ID","MTS","AMOUNT","RATE_DAILY","PERIOD"]
[399977402,1766964640285,-500.0,0.00013683,2]
[399977403,1766964640294,-500.0,0.00013683,2]
[399977404,1766964640303,-500.0,0.00013683,2]
[399977405,1766964640313,-500.0,0.00013683,2]
[399977406,1766964640322,-500.0,0.00013683,2]
[399977407,1766964640331,-500.0,0.00013683,2]
[399977408,1766964640340,-500.0,0.00013683,2]
[399977409,1766964640349,-500.0,0.00013683,2]
[399977410,1766964640358,-500.0,0.00013683,2]
[399977411,1766964640369,-500.0,0.00013683,2]
[399977412,1766964640378,-500.0,0.00013683,2]
[399977413,1766964640387,-500.0,0.00013683,2]
[399977414,1766964640397,-500.0,0.00013683,2]
[399977415,1766964640406,-500.0,0.00013683,2]
[399977416,1766964640416,-500.0,0.00013683,2]
[399977417,1766964640427,-500.0,0.00013683,2]
[399977418,1766964640438,-500.0,0.00013683,2]
[399977419,1766964640447,-500.0,0.00013683,2]
[399977420,1766964640458,-500.0,0.00013683,2]
[399977421,1766964640468,-500.0,0.00013683,2]
[399977422,1766964640478,-500.0,0.00013683,2]
[399977423,1766964640488,-500.0,0.00013683,2]
[399977424,1766964640498,-500.0,0.00013683,2]
[399977425,1766964640507,-500.0,0.00013683,2]
[399977426,1766964640522,-500.0,0.00013683,2]
[399977427,1766964640532,-500.0,0.00013683,2]
[399977428,1766964640541,-500.0,0.00013683,2]
[399977429,1766964640551,-500.0,0.00013683,2]
[399977430,1766964640562,-500.0,0.00013683,2]
[399977431,1766964640573,-500.0,0.00013683,2]
[399977432,1766964640582,-500.0,0.00013683,2]
[399977433,1766964640594,-500.0,0.00013683,2]
[399977434,1766964640604,-500.0,0.00013683,2]
[399977435,1766964640613,-500.0,0.00013683,2]
[399977436,1766964640622,-500.0,0.00013683,2]
[399977437,1766964640631,-500.0,0.00013683,2]
[399977438,1766964640641,-500.0,0.00013683,2]
[399977439,1766964640651,-500.0,0.00013683,2]
[399977440,1766964640660,-500.0,0.00013683,2]
[399977441,1766964640669,-500.0,0.00013683,2]
[399977442,1766964640679,-500.0,0.00013683,2]
[399977443,1766964640688,-500.0,0.00013683,2]
[399977444,1766964640697,-500.0,0.00013683,2]
[399977445,1766964640706,-159.13376227,0.00013683,2]
[399977446,1766964640715,-500.0,0.00013683,2]
[399977447,1766964640726,-500.0,0.00013683,2]
[399977448,1766964640735,-500.0,0.00013683,2]
[399977449,1766964640744,-500.0,0.00013683,2]
[399977450,1766964640754,-500.0,0.00013683,2]
[399977451,1766964640764,-500.0,0.00013683,2]
[399977452,1766964640773,-500.0,0.00013683,2]
[399977453,1766964640783,-500.0,0.00013683,2]
[399977454,1766964640792,-500.0,0.00013683,2]
[399977455,1766964640801,-500.0,0.00013683,2]
[399977456,1766964640810,-500.0,0.00013683,2]
[399977457,1766964640819,-500.0,0.00013683,2]
[399977458,1766964640830,-500.0,0.00013683,2]
[399977459,1766964640840,-500.0,0.00013683,2]
[399977460,1766964640850,-500.0,0.00013683,2]
[399977461,1766964640860,-550.0,0.00013683,2]
[399977462,1766964640869,-500.0,0.00013684,2]
[399977463,1766964640878,-500.0,0.00013698,2]
[399977464,1766964640888,-500.0,0.00013698,2]
[399977465,1766964640898,-500.0,0.00013698,2]
[399977466,1766964640907,-500.0,0.00013698,2]
[399977467,1766964640916,-500.0,0.00013698,2]
[399977468,1766964640925,-500.0,0.00013698,2]
[399977469,1766964640934,-500.0,0.00013698,2]
[399977470,1766964640943,-500.0,0.00013698,2]
[399977471,1766964640952,-500.0,0.00013698,2]
[399977472,1766964640961,-500.0,0.00013698,2]
[399977473,1766964640971,-500.0,0.00013698,2]
[399977474,1766964640980,-500.0,0.00013698,2]
[399977475,1766964640989,-500.0,0.00013698,2]
[399977476,1766964640998,-500.0,0.00013698,2]
[399977477,1766964641007,-500.0,0.00013698,2]
[399977478,1766964641016,-500.0,0.00013698,2]
[399977479,1766964641025,-500.0,0.00013698,2]
[399977480,1766964641034,-500.0,0.00013698,2]
[399977481,1766964641043,-500.0,0.00013698,2]
[399977482,1766964641052,-500.0,0.00013698,2]
[399977483,1766964641061,-500.0,0.00013698,2]
[399977484,1766964641070,-863.93,0.00013699,2]
[399977485,1766964641079,-500.0,0.00013699,2]
[399977486,1766964641090,-500.0,0.00013699,2]
[399977487,1766964641100,-500.0,0.00013699,2]
[399977488,1766964641109,-500.0,0.00013699,2]
[399977489,1766964641119,-500.0,0.00013699,2]
[399977490,1766964641130,-500.0,0.00013699,2]
[399977491,1766964641141,-500.0,0.00013699,2]
[399977492,1766964641150,-198.55192967,0.00013699,2]
[399977493,1766964641159,-500.0,0.00013699,2]
[399977494,1766964641168,-500.0,0.00013699,2]
[399977495,1766964641177,-500.0,0.00013699,2]
[399977496,1766964641187,-500.0,0.00013699,2]
[399977497,1766964641196,-153.22006259,0.0001387,2]
[399977498,1766964641206,-2296.8231712,0.00013965,2]
[399977499,1766964641215,-3411.29727192,0.00013965,2]
[399977500,1766964641225,-99649.67359843,0.0001399,2]
[399977501,1766964641234,-171.53,0.00014016,2]
[399977502,1766964641243,-1418.48170734,0.00014023,2]
[399977503,1766964641252,-298.29585415,0.00014024,2]
[399977504,1766964641261,-916.32,0.0001407,2]
[399977505,1766964641271,-51790.1586482,0.00014163,2]
[399977506,1766964641282,-3307.95,0.00014277,2]
[399977507,1766964641290,-195.0,0.00014311,2]
[399977508,1766964641300,-195.0,0.00014311,2]
[399977509,1766964641311,-250.0,0.00014311,2]
[399977510,1766964641321,-195.0,0.00014311,2]
[399977511,1766964641331,-195.0,0.00014311,2]
[399977512,1766964641343,-999.0,0.0001433,3]
[399977513,1766964641354,-2296.8231712,0.00014332,2]
[399977514,1766964641367,-3411.29727192,0.00014332,2]
[399977515,1766964641378,-8597.9647409,0.0001439,2]
[399977516,1766964641386,-4394.39924074,0.00014421,2]
[399977517,1766964641396,-916.32,0.00014484,2]
[399977518,1766964641405,-150.99,0.00014504,2]
[399977519,1766964641413,-9999.99,0.00014504,2]
[399977520,1766964641422,-1418.48170734,0.00014549,2]
[399977521,1766964641431,-201.719728,0.00014649,2]
[399977522,1766964641440,-255.0,0.00014697,2]
[399977523,1766964641449,-2296.8231712,0.00014699,2]
[399977524,1766964641458,-3411.29727192,0.00014699,2]
[399977525,1766964641467,-1362.0,0.00014777,2]
[399977526,1766964641477,-420.0,0.00014793,2]
[399977527,1766964641486,-300.0,0.00014793,2]
[399977528,1766964641495,-916.32,0.00014898,2]
[399977529,1766964641504,-481.58726578,0.00014903,2]
[399977530,1766964641512,-1000.0,0.00014963,2]
[399977531,1766964641525,-5014.92,0.00014999,2]
[399977532,1766964641534,-500.0,0.00014999,2]
[399977533,1766964641543,-196.45312348,0.00014999,2]
[399977534,1766964641556,-281.47582361,0.00014999,2]
[399977535,1766964641567,-442.81654905,0.00014999,2]
[399977536,1766964641577,-2042.52030711,0.00015,2]
[399977537,1766964641587,-21378.21540369,0.00015,2]
[399977538,1766964641596,-1155.76996984,0.00015,2]
[399977539,1766964641607,-33612.87900818,0.00015,2]
[399977540,1766964641617,-2296.8231712,0.00015066,2]
[399977541,1766964641829,-3411.29727192,0.00015066,2]
[399977542,1766964641840,-150.0,0.00015288,2]
[399977543,1766964641851,-150.0,0.00015288,2]
[399977544,1766964641860,-150.0,0.00015288,2]
[399977545,1766964641870,-150.0,0.00015288,2]
[399977546,1766964641879,-1517.64,0.000153,2]
[399977547,1766964641889,-916.32,0.00015312,2]
[399977548,1766964641897,-153.22006259,0.00015385,2]
[399977549,1766964641906,-506.31384754,0.000154,2]
[399977550,1766964641915,-2296.8231712,0.00015432,2]
[399977551,1766964641924,-3411.29727192,0.00015432,2]
[399977552,1766964641933,-11956.52703342,0.00015556,2]
[399977553,1766964641942,-916.32,0.00015726,2]
[399977554,1766964641951,-171.53,0.00015768,2]
[399977555,1766964641960,-2296.8231712,0.00015799,2]
[399977556,1766964641969,-3411.29727192,0.00015799,2]
[399977557,1766964641979,-2231.02195886,0.00015807,2]
[399977558,1766964641988,-1852.42,0.00015826,2]
[399977559,1766964641997,-315.0,0.00015906,2]
[399977560,1766964642006,-500.0,0.00015921,2]
[399977561,1766964642015,-500.0,0.00015973,2]
[399977562,1766964642024,-500.0,0.00015973,2]
[399977563,1766964642033,-500.0,0.00015973,2]
[399977564,1766964642042,-500.0,0.00015973,2]
[399977565,1766964642051,-500.0,0.00015973,2]
[399977566,1766964642061,-151.0,0.00015997,2]
[399977567,1766964642070,-151.0,0.00015997,2]
[399977568,1766964642080,-151.0,0.00015997,2]
[399977569,1766964642089,-89024.3433519,0.00016,2]
[399977570,1766964642099,-1125219.04348382,0.00016,3]
[399977571,1766964642110,-16961.26309548,0.00016,2]
[399977572,1766964642120,-98321.27836719,0.00016,2]
[399977579,1766964643727,-580.24678196,0.00013684,2]
[399977580,1766964643736,-1316.0389403,0.00013684,2]
[399977581,1766964643745,-16146.55718402,0.00016,2]
[399977582,1766964643755,-50140.48136963,0.00016,2]
[399977583,1766964643764,-42413.38531049,0.00016,4]
[399977584,1766964643773,-151.0,0.00016,2]
[399977585,1766964643783,-151.0,0.00016,2]
[399977586,1766964643792,-151.0,0.00016,2]
[399977587,1766964643801,-151.0,0.00016,2]
[399977588,1766964643811,-556.676575,0.00016,2]
[399977589,1766964643820,-556.676575,0.00016,2]
[399977590,1766964643829,-556.676575,0.00016,2]
[399977591,1766964643839,-556.676575,0.00016,2]
[399977592,1766964643849,-500.0,0.00016027,2]
[399977593,1766964643859,-2296.8231712,0.00016166,2]
[399977594,1766964643868,-3411.29727192,0.00016166,2]
[399977595,1766964643877,-21875.91934859,0.000162,5]
[399977596,1766964643887,-1000.0,0.000162,2]
[399977597,1766964643896,-1408.0,0.00016212,2]
[399977598,1766964643906,-587.0,0.00016215,2]
[399977599,1766964643917,-11555.9463932,0.00016228,2]
[399977600,1766964643927,-169.60595422,0.00016259,2]
[399977601,1766964643937,-500.0,0.00016438,2]
[399977602,1766964643946,-500.0,0.00016438,2]
[399977603,1766964643956,-500.0,0.00016438,2]
[399977604,1766964643966,-472.62171176,0.00016438,2]
[399977605,1766964643975,-3564.0,0.00016507,2]
[399977606,1766964643984,-1408.0,0.00016511,2]
[399977607,1766964643994,-1000.0,0.00016521,2]
[399977608,1766964644003,-2296.8231712,0.00016533,2]
[399977609,1766964644012,-3411.29727192,0.00016533,2]
[399977610,1766964644022,-3564.0,0.00016534,2]
[399977611,1766964644031,-3564.0,0.00016562,2]
[399977612,1766964644040,-3564.0,0.00016589,2]
[399977613,1766964644050,-1408.0,0.0001659,2]
[399977614,1766964644060,-1000.0,0.000166,2]
[399977615,1766964644069,-3564.0,0.00016617,2]
[399977616,1766964644079,-1657.258,0.00016617,2]
[399977617,1766964644088,-157.142,0.00016617,2]
[399977618,1766964644097,-1000.0,0.00016626,2]
[399977619,1766964644107,-1408.0,0.0001664,2]
[399977620,1766964644116,-3564.0,0.00016644,2]
[399977621,1766964644125,-1408.0,0.00016648,2]
[399977622,1766964644134,-331.83272174,0.0001666,2]
[399977623,1766964644144,-3564.0,0.00016671,2]
[399977624,1766964644153,-2578.4801694,0.00016688,2]
[399977625,1766964644162,-394.0,0.00016696,2]
[399977626,1766964644171,-3564.0,0.00016699,2]
[399977627,1766964644180,-1000.0,0.000167,2]
[399977628,1766964644190,-1408.0,0.00016704,2]
[399977629,1766964644199,-3564.0,0.00016726,2]
[399977630,1766964644208,-3564.0,0.00016754,2]
[399977631,1766964644219,-175.8318502,0.00016764,3]
[399977632,1766964644229,-3564.0,0.00016781,2]
[399977633,1766964644239,-1000.0,0.000168,2]
[399977634,1766964644249,-3564.0,0.00016808,2]
[399977635,1766964644258,-1408.0,0.00016827,2]
[399977636,1766964644270,-3564.0,0.00016836,2]
[399977637,1766964644279,-171.6502218,0.00016836,2]
[399977638,1766964644288,-25000.0,0.00016838,3]
[399977639,1766964644297,-271.94730123,0.00016843,2]
[399977640,1766964644306,-623.78580978,0.00016845,2]
[399977641,1766964644317,-25000.0,0.00016847,3]
[399977642,1766964644327,-25000.0,0.00016856,3]
[399977643,1766964644337,-3564.0,0.00016863,2]
[399977644,1766964644347,-200.0,0.00016864,2]
[399977645,1766964644358,-623.78580977,0.00016873,2]
[399977646,1766964644367,-3564.0,0.00016891,2]
[399977647,1766964644376,-198.9223939,0.00016897,2]
[399977648,1766964644387,-198.92239388,0.00016899,2]
[399977649,1766964644396,-153.22006259,0.000169,2]
[399977650,1766964644405,-2296.8231712,0.000169,2]
[399977651,1766964644414,-3411.29727192,0.000169,2]
[399977652,1766964644423,-623.78580977,0.000169,2]
[399977653,1766964644432,-352.50332532,0.000169,2]
[399977654,1766964644441,-156.81485742,0.000169,2]
[399977655,1766964644451,-198.92239388,0.000169,2]
[399977656,1766964644461,-3647.0,0.000169,2]
[399977657,1766964644471,-3564.0,0.00016918,2]
[399977658,1766964644481,-151.0,0.00016933,2]
[399977659,1766964644491,-397.49481491,0.00016935,2]
[399977660,1766964644501,-626.87269415,0.00016935,2]
[399977661,1766964644511,-500.0,0.00016935,2]
[399977662,1766964644524,-150.0,0.00016935,2]
[399977663,1766964644535,-253221.7265624,0.00016936,2]
[399977664,1766964644545,-151.0,0.00016936,2]
[399977665,1766964644554,-151.0,0.00016936,2]
[399977666,1766964644563,-166.182582,0.00016936,2]
[399977667,1766964644572,-166.182582,0.00016936,2]
[399977668,1766964644581,-166.182582,0.00016936,2]
[399977669,1766964644592,-166.182582,0.00016936,2]
[399977670,1766964644602,-249.769813,0.00016936,2]
[399977671,1766964644611,-249.769813,0.00016936,2]
[399977672,1766964644620,-249.769813,0.00016936,2]
[399977673,1766964644629,-249.769813,0.00016936,2]
[399977674,1766964644637,-151.0,0.00016936,2]
[399977675,1766964644647,-151.0,0.00016936,2]
[399977676,1766964644656,-151.0,0.00016936,2]
[399977677,1766964644665,-151.0,0.00016936,2]
[399977678,1766964644675,-151.0,0.00016936,2]
[399977679,1766964644685,-151.0,0.00016936,2]
[399977680,1766964644695,-151.0,0.00016936,2]
[399977681,1766964644705,-992.480609,0.00016936,2]
[399977682,1766964644715,-992.480609,0.00016936,2]
[399977683,1766964644726,-992.480609,0.00016936,2]
[399977684,1766964644735,-992.480609,0.00016936,2]
[399977685,1766964644744,-151.0,0.00016936,2]
[399977686,1766964644755,-151.0,0.00016936,2]
[399977687,1766964644763,-151.0,0.00016936,2]
[399977688,1766964644773,-285.649133,0.00016936,2]
[399977689,1766964644782,-556.676575,0.00016936,2]
[399977690,1766964644792,-556.676575,0.00016936,2]
[399977691,1766964644801,-556.676575,0.00016936,2]
[399977692,1766964644810,-556.676575,0.00016936,2]
[399977693,1766964644819,-59846.0566282,0.0001694,2]
[399977694,1766964644828,-3564.0,0.00016945,2]
[399977695,1766964644838,-3564.0,0.00016973,2]
[399977696,1766964644848,-4620.91,0.00016986,2]
[399977697,1766964644857,-151.502539,0.00016997,2]
[399977698,1766964644866,-151.502539,0.00016997,2]
[399977699,1766964644875,-151.502539,0.00016997,2]
[399977700,1766964644884,-151.502539,0.00016997,2]
[399977701,1766964644893,-1056.637217,0.00016997,2]
[399977702,1766964644903,-1056.637217,0.00016997,2]
[399977703,1766964644912,-1056.637217,0.00016997,2]
[399977704,1766964644921,-1056.637217,0.00016997,2]
[399977705,1766964644931,-151.0,0.00016997,2]
[399977706,1766964644940,-156.09637,0.00016997,2]
[399977707,1766964644949,-227.593215,0.00016997,2]
[399977708,1766964644958,-300.0,0.00016999,2]
[399977709,1766964644968,-277.91367706,0.00016999,2]
[399977710,1766964644977,-413.76435569,0.00016999,2]
[399977711,1766964644986,-300.0,0.00016999,2]
[399977712,1766964644995,-666.0,0.00016999,2]
[399977713,1766964645004,-300.0,0.00016999,2]
[399977714,1766964645014,-666.0,0.00016999,2]
[399977715,1766964645023,-500.0,0.00016999,2]
[399977716,1766964645032,-500.0,0.00016999,2]
[399977717,1766964645041,-113720.16490181,0.00017,2]
[399977718,1766964645580,-13839.554932,0.00017,2]
[399977719,1766964645747,-83355.74826646,0.00017,2]
[399977720,1766964645761,-605.43256197,0.00017,2]
[399977740,1766964655824,500.0,0.0001291,2]
[399977741,1766964689535,217.9,0.00030137,120]
[399977742,1766964705860,500.0,0.0003013,120]
[399977743,1766964929646,579.51473879,0.000301,120]
[399977744,1766965112275,500.0,0.00030136,120]
[399977745,1766965112512,500.0,0.00030136,120]
[399977746,1766965112760,500.0,0.00030136,120]
[399977747,1766965113164,500.0,0.00030136,120]
[399977748,1766965113290,500.0,0.00030136,120]
[399977749,1766965113780,500.0,0.00030136,120]
[399977750,1766965113824,500.0,0.00030136,120]
[399977751,1766965114035,500.0,0.00030136,120]
[399977752,1766965114267,500.0,0.00030136,120]
[399977753,1766965114500,500.0,0.00030136,120]
[399977754,1766965114748,500.0,0.00030136,120]
[399977755,1766965114994,500.0,0.00030136,120]
[399977756,1766965115247,500.0,0.00030136,120]
[399977757,1766965115499,500.0,0.00030136,120]
[399977758,1766965115737,500.0,0.00030136,120]
[399977759,1766965116211,500.0,0.00030136,120]
[399977760,1766965116453,500.0,0.00030136,120]
[399977761,1766965116687,500.0,0.00030136,120]
[399977762,1766965116934,500.0,0.00030136,120]
[399977763,1766965117191,507.0,0.00030136,120]
[399977764,1766965761142,-854.66193769,0.00013274,2]
[399977765,1766965778409,-166.61,0.00021918,30]
[399977766,1766965778443,-33.39,0.00026244,30]
[399977779,1766965831646,-287.59,0.00013274,2]
[399977781,1766965831659,-252.41706231,0.00013274,2]
[399977782,1766965831669,-163.57952885,0.00013385,2]
[399977783,1766965831680,-300.0,0.00013443,2]
[399977784,1766965831690,-300.0,0.00013443,2]
[399977785,1766965831700,-1200.0,0.00013443,2]
[399977786,1766965831709,-197.03307652,0.00013444,2]
[399977787,1766965831719,-500.0,0.00013444,2]
[399977788,1766965831729,-159.97158434,0.00013444,2]
[399977789,1766965831739,-500.0,0.00013444,2]
[399977790,1766965831752,-500.0,0.00013444,2]
[399977791,1766965831763,-500.0,0.00013444,2]
[399977792,1766965831774,-500.0,0.00013444,2]
[399977793,1766965831786,-500.0,0.00013444,2]
[399977794,1766965831796,-500.0,0.00013444,2]
[399977795,1766965831806,-500.0,0.00013444,2]
[399977796,1766965831816,-500.0,0.00013444,2]
[399977797,1766965831825,-472.66553956,0.00013444,2]
[399977798,1766965831834,-500.0,0.00013444,2]
[399977799,1766965831843,-500.0,0.00013444,2]
[399977800,1766965831852,-150.0,0.00013444,2]
[399977801,1766965831861,-553.92,0.00013444,2]
[399977802,1766965831870,-17864.29220443,0.00013445,2]
[399977803,1766965831890,-812.19477582,0.00013445,2]
[399977804,1766965831900,-259.39015822,0.00013445,2]
[399977806,1766965831911,-1155.10411018,0.00013445,2]
[399977808,1766965831922,-1168.18354245,0.00013445,2]
[399977810,1766965831933,-605.71259571,0.00013445,2]
[399977812,1766965831944,-449.66614174,0.00013445,2]
[399977816,1766965831955,-257.87596969,0.00013445,2]
[399977818,1766965831967,-729.51283028,0.00013445,2]
[399977867,1766965837811,-908.48151348,0.00013445,2]
[399977869,1766965837823,-526.71855372,0.00013445,2]
[399977878,1766965837935,-518.09069351,0.00013445,2]
[399977879,1766965837947,-1436.31215176,0.00013445,2]
[399977887,1766965839851,-10185.87604076,0.00013445,2]
[399977888,1766965839905,-377.94240001,0.00013445,2]
[399977889,1766965839917,-438.325,0.00013445,2]
[399977890,1766965840042,-1300.94465244,0.00013445,2]
[399977891,1766965840053,-380.9790429,0.00013445,2]
[399977892,1766965840065,-960624.3976229,0.00013445,2]
[399977893,1766965840074,-173.79431503,0.00013485,2]
[399977894,1766965840083,-500.0,0.00013537,2]
[399977895,1766965840093,-500.0,0.00013537,2]
[399977896,1766965840103,-187.37550119,0.00013537,2]
[399977897,1766965840112,-400.09374557,0.00013537,2]
[399977898,1766965840122,-174.77566897,0.00013537,2]
[399977899,1766965840131,-1000.0,0.00013585,2]
[399977900,1766965840141,-504.09132802,0.00013698,2]
[399977901,1766965840150,-500.0,0.00013698,2]
[399977902,1766965840159,-500.0,0.00013698,2]
[399977903,1766965840169,-500.0,0.00013698,2]
[399977904,1766965840179,-500.0,0.00013698,2]
[399977905,1766965840188,-500.0,0.00013698,2]
[399977906,1766965840198,-500.0,0.00013698,2]
[399977907,1766965840207,-500.0,0.00013698,2]
[399977908,1766965840220,-500.0,0.00013698,2]
[399977909,1766965840229,-500.0,0.00013698,2]
[399977910,1766965840239,-178.36089197,0.00013698,2]
[399977911,1766965840249,-500.0,0.00013698,2]
[399977912,1766965840260,-500.0,0.00013698,2]
[399977913,1766965840271,-500.0,0.00013698,2]
[399977914,1766965840281,-500.0,0.00013698,2]
[399977915,1766965840291,-500.0,0.00013698,2]
[399977916,1766965840301,-500.0,0.00013698,2]
[399977917,1766965840311,-500.0,0.00013698,2]
[399977918,1766965840320,-500.0,0.00013698,2]
[399977919,1766965840330,-500.0,0.00013698,2]
[399977920,1766965840339,-533.98901528,0.00013698,2]
[399977921,1766965840348,-500.0,0.00013698,2]
[399977922,1766965840359,-151.61717051,0.00013698,2]
[399977923,1766965840369,-546.9592126,0.00013698,2]
[399977924,1766965840379,-500.0,0.00013698,2]
[399977925,1766965840389,-500.0,0.00013698,2]
[399977926,1766965840399,-500.0,0.00013698,2]
[399977927,1766965840408,-500.0,0.00013698,2]
[399977928,1766965840418,-500.0,0.00013698,2]
[399977929,1766965840428,-500.0,0.00013698,2]
[399977930,1766965840438,-500.0,0.00013698,2]
[399977931,1766965840448,-500.0,0.00013698,2]
[399977932,1766965840458,-500.0,0.00013698,2]
[399977933,1766965840467,-500.0,0.00013698,2]
[399977934,1766965840477,-633.17243663,0.00013699,2]
[399977935,1766965840488,-553.92,0.00013718,2]
[399977936,1766965840499,-10585.51171306,0.00013947,2]
[399977937,1766965840507,-553.92,0.00013992,2]
[399977938,1766965840516,-163.57952881,0.00014088,2]
[399977939,1766965840525,-173.794315,0.00014168,2]
[399977940,1766965840534,-166.66,0.00014214,2]
[399977941,1766965840544,-553.92,0.00014265,2]
[399977942,1766965840554,-166.66,0.00014513,2]
[399977943,1766965840564,-471.0,0.00014521,2]
[399977944,1766965840576,-553.96,0.00014539,2]
[399977945,1766965840585,-500.0,0.00014573,2]
[399977946,1766965840594,-195.0,0.00014601,2]
[399977947,1766965840604,-195.0,0.00014601,2]
[399977948,1766965840614,-195.0,0.00014601,2]
[399977949,1766965840623,-420.0,0.00014736,2]
[399977950,1766965840632,-480.0,0.00014787,2]
[399977951,1766965840642,-163.57952881,0.00014791,2]
[399977952,1766965840651,-166.66,0.00014812,2]
[399977953,1766965840661,-969.45,0.00014821,2]
[399977954,1766965840670,-173.794315,0.00014851,2]
[399977955,1766965840679,-150.0,0.0001486,2]
[399977956,1766965840688,-1500.0,0.0001486,2]
[399977957,1766965840696,-200.0,0.00014885,2]
[399977958,1766965840705,-153.81,0.00014928,2]
[399977959,1766965840716,-166.66,0.00015111,2]
[399977960,1766965840728,-500.0,0.00015121,2]
[399977961,1766965840737,-151.0,0.00015261,2]
[399977962,1766965840746,-151.0,0.00015261,2]
[399977963,1766965840755,-151.0,0.00015265,2]
[399977964,1766965840766,-151.0,0.00015265,2]
[399977965,1766965840776,-151.0,0.00015269,2]
[399977966,1766965840787,-151.0,0.00015269,2]
[399977967,1766965840796,-166.66,0.0001541,2]
[399977968,1766965840805,-2890.18,0.00015457,2]
[399977969,1766965840814,-163.57952881,0.00015494,2]
[399977970,1766965840824,-173.794315,0.00015534,2]
[399977971,1766965840833,-166.66,0.0001571,2]
[399977972,1766965840842,-335.46409126,0.00015797,2]
[399977973,1766965840851,-334.5472959,0.00015797,2]
[399977974,1766965840861,-311.36902161,0.00015921,2]
[399977975,1766965840870,-500.0,0.00015973,2]
[399977976,1766965840879,-481.0497289,0.00015973,2]
[399977977,1766965840888,-153.81,0.00015994,2]
[399977978,1766965840897,-5888.0,0.00016054,2]
[399977979,1766965840906,-8410.57,0.00016116,2]
[399977980,1766965840915,-150.99,0.00016116,2]
[399977981,1766965840924,-587.0,0.00016153,2]
[399977982,1766965840933,-500.0,0.00016164,2]
[399977983,1766965840942,-163.57952881,0.00016197,2]
[399977984,1766965840951,-173.794315,0.00016217,2]
[399977985,1766965840960,-1000.0,0.000164,2]
[399977986,1766965840969,-837.4,0.00016438,2]
[399977987,1766965840978,-219.1801902,0.00016438,2]
[399977988,1766965840987,-1237.0,0.00016512,2]
[399977989,1766965840996,-1000.0,0.00016521,2]
[399977990,1766965841005,-250.0,0.00016554,2]
[399977991,1766965841015,-1015.0,0.000166,2]
[399977992,1766965841025,-165.91636087,0.0001666,2]
[399977993,1766965841034,-1237.0,0.0001669,2]
[399977994,1766965841044,-1604.0,0.00016699,2]
[399977995,1766965841055,-837.4,0.00016712,2]
[399977996,1766965841064,-1604.0,0.00016726,2]
[399977997,1766965841075,-1604.0,0.00016754,2]
[399977998,1766965841084,-1604.0,0.00016781,2]
[399977999,1766965841094,-1604.0,0.00016809,2]
[399978000,1766965841103,-1604.0,0.00016836,2]
[399978001,1766965841112,-1604.0,0.00016863,2]
[399978002,1766965841123,-200.0,0.00016864,2]
[399978003,1766965841133,-1604.0,0.00016891,2]
[399978004,1766965841143,-173.794315,0.000169,2]
[399978005,1766965841153,-163.57952881,0.000169,2]
[399978006,1766965841162,-2911.0,0.000169,2]
[399978007,1766965841172,-1604.0,0.00016918,2]
[399978008,1766965841181,-1237.0,0.00016945,2]
[399978009,1766965841190,-1604.0,0.00016946,2]
[399978010,1766965841199,-1604.0,0.00016973,2]
[399978011,1766965841208,-285.49896884,0.00016985,2]